fUST/lending_fUST_20251231
["ID","MTS","AMOUNT","RATE_DAILY","PERIOD"]
[400130647,1767142242767,-1000.0,0.00014247,2]
[400130648,1767142242776,-1000.0,0.00014247,2]
[400130649,1767142242786,-1000.0,0.00014247,2]
[400130650,1767142242796,-1000.0,0.00014247,2]
[400130651,1767142242805,-1000.0,0.00014247,2]
[400130652,1767142242815,-1000.0,0.00014247,2]
[400130653,1767142242824,-1000.0,0.00014247,2]
[400130654,1767142242834,-1000.0,0.00014247,2]
[400130655,1767142242844,-1000.0,0.00014247,2]
[400130656,1767142242854,-1000.0,0.00014247,2]
[400130657,1767142242863,-1000.0,0.00014247,2]
[400130659,1767142242872,-1000.0,0.00014247,2]
[400130661,1767142242882,-1000.0,0.00014247,2]
[400130662,1767142242891,-1000.0,0.00014247,2]
[400130664,1767142242901,-1000.0,0.00014247,2]
[400130666,1767142242910,-1000.0,0.00014247,2]
[400130668,1767142242919,-1000.0,0.00014247,2]
[400130670,1767142242928,-911.70387957,0.00014247,2]
[400130672,1767142242938,-1000.0,0.00014247,2]
[400130674,1767142242946,-1000.0,0.00014247,2]
[400130676,1767142242956,-500.23104155,0.00014247,2]
[400130678,1767142242966,-1000.0,0.00014247,2]
[400130679,1767142242975,-609.01134723,0.00014247,2]
[400130680,1767142242984,-500.49105905,0.00014247,2]
[400130681,1767142242993,-1000.0,0.00014247,2]
[400130682,1767142243003,-1000.0,0.00014247,2]
[400130683,1767142243012,-1000.0,0.00014247,2]
[400130684,1767142243021,-1000.0,0.00014247,2]
[400130685,1767142243031,-1000.0,0.00014247,2]
[400130686,1767142243040,-1000.0,0.00014247,2]
[400130687,1767142243049,-1000.0,0.00014247,2]
[400130688,1767142243058,-1000.0,0.00014247,2]
[400130689,1767142243068,-500.29842762,0.00014247,2]
[400130690,1767142243077,-1000.0,0.00014247,2]
[400130691,1767142243086,-1000.0,0.00014247,2]
[400130692,1767142243095,-1000.6,0.00014247,2]
[400130693,1767142243104,-1000.0,0.00014247,2]
[400130694,1767142243116,-1000.0,0.00014247,2]
[400130695,1767142243126,-1000.0,0.00014247,2]
[400130696,1767142243135,-1140.95305327,0.00014247,2]
[400130697,1767142243144,-1000.0,0.00014247,2]
[400130698,1767142243153,-1000.0,0.00014247,2]
[400130699,1767142243164,-439.78725339,0.00014247,2]
[400130700,1767142243174,-1000.0,0.00014247,2]
[400130701,1767142243183,-1000.0,0.00014247,2]
[400130702,1767142243192,-1000.0,0.00014247,2]
[400130703,1767142243202,-1000.0,0.00014247,2]
[400130704,1767142243213,-1000.0,0.00014247,2]
[400130705,1767142243234,-1000.0,0.00014247,2]
[400130706,1767142243250,-1000.0,0.00014247,2]
[400130707,1767142243261,-1000.0,0.00014247,2]
[400130708,1767142243277,-1000.0,0.00014247,2]
[400130709,1767142243286,-1000.0,0.00014247,2]
[400130710,1767142243296,-1000.0,0.00014247,2]
[400130711,1767142243306,-1000.0,0.00014247,2]
[400130712,1767142243315,-1000.0,0.00014247,2]
[400130713,1767142243325,-841.76077155,0.00014247,2]
[400130714,1767142243334,-1000.0,0.00014247,2]
[400130715,1767142243344,-1000.0,0.00014247,2]
[400130716,1767142243354,-1000.0,0.00014247,2]
[400130717,1767142243363,-1000.0,0.00014247,2]
[400130718,1767142243372,-1000.0,0.00014247,2]
[400130719,1767142243382,-1000.0,0.00014247,2]
[400130720,1767142243391,-1000.0,0.00014247,2]
[400130721,1767142243400,-1000.0,0.00014247,2]
[400130722,1767142243410,-318.89935051,0.00014334,2]
[400130723,1767142243420,-1500.0,0.00014368,2]
[400130724,1767142243429,-1500.0,0.00014368,2]
[400130725,1767142243437,-543.97913442,0.00014368,2]
[400130726,1767142243447,-1500.0,0.00014368,2]
[400130727,1767142243456,-1500.0,0.00014368,2]
[400130728,1767142243465,-1463.64176807,0.00014368,2]
[400130729,1767142243474,-501.17509357,0.00014368,2]
[400130730,1767142243483,-491.44055315,0.00014368,2]
[400130731,1767142243492,-1500.0,0.00014368,2]
[400130732,1767142243502,-608.22992308,0.00014368,2]
[400130733,1767142243512,-1182.79236515,0.00014368,2]
[400130734,1767142243521,-350.60008768,0.00014368,2]
[400130735,1767142243530,-1500.0,0.00014368,2]
[400130736,1767142243539,-304.17357408,0.00014368,2]
[400130737,1767142243548,-1500.0,0.00014368,2]
[400130738,1767142243558,-1500.0,0.00014368,2]
[400130739,1767142243567,-1500.0,0.00014368,2]
[400130740,1767142243576,-1500.0,0.00014368,2]
[400130741,1767142243585,-1500.0,0.00014368,2]
[400130742,1767142243594,-1500.0,0.00014368,2]
[400130743,1767142243604,-1500.0,0.00014368,2]
[400130744,1767142243614,-1148.56176986,0.00014368,2]
[400130745,1767142243623,-1500.0,0.00014368,2]
[400130746,1767142243632,-1500.0,0.00014368,2]
[400130747,1767142243642,-1500.0,0.00014368,2]
[400130748,1767142243651,-1500.0,0.00014368,2]
[400130749,1767142243662,-1500.0,0.00014368,2]
[400130750,1767142243671,-848.74032619,0.00014368,2]
[400130751,1767142243680,-1500.0,0.00014368,2]
[400130752,1767142243690,-1500.0,0.00014368,2]
[400130753,1767142243699,-1500.0,0.00014368,2]
[400130754,1767142243708,-1500.0,0.00014368,2]
[400130755,1767142243718,-1500.0,0.00014368,2]
[400130756,1767142243727,-1500.0,0.00014368,2]
[400130757,1767142243736,-1500.0,0.00014368,2]
[400130758,1767142243746,-1500.0,0.00014368,2]
[400130759,1767142243755,-153.38433205,0.00014368,2]
[400130760,1767142243765,-185.90422745,0.00014368,2]
[400130761,1767142243774,-1500.0,0.00014368,2]
[400130762,1767142243899,-602.08725068,0.00014368,2]
[400130763,1767142243909,-500.0,0.0001437,2]
[400130764,1767142243919,-1215.77220077,0.00014426,2]
[400130765,1767142243929,-500.0,0.00014644,2]
[400130766,1767142243939,-900.0,0.00014768,2]
[400130767,1767142243948,-523.97056295,0.00014795,2]
[400130768,1767142243957,-1500.0,0.00014795,2]
[400130769,1767142243966,-1542.67834367,0.00014795,2]
[400130770,1767142243975,-1501.17569243,0.00014795,2]
[400130771,1767142243986,-1500.0,0.00014795,2]
[400130772,1767142243995,-1134.18716453,0.00014795,2]
[400130773,1767142244004,-1500.0,0.00014795,2]
[400130774,1767142244014,-1500.0,0.00014795,2]
[400130775,1767142244023,-1000.6174752,0.00014795,2]
[400130776,1767142244033,-180.59685977,0.00014795,2]
[400130777,1767142244043,-370.21149129,0.00014795,2]
[400130778,1767142244055,-1425.34356303,0.00014795,2]
[400130779,1767142244064,-1077.78102605,0.00014795,2]
[400130780,1767142244073,-1500.0,0.00014795,2]
[400130781,1767142244082,-1068.19168824,0.00014795,2]
[400130782,1767142244091,-689.79380448,0.00014795,2]
[400130783,1767142244100,-1500.0,0.00014795,2]
[400130784,1767142244109,-656.04876698,0.00014795,2]
[400130785,1767142244119,-1500.0,0.00014795,2]
[400130786,1767142244129,-1500.0,0.00014795,2]
[400130787,1767142244139,-1500.0,0.00014795,2]
[400130788,1767142244149,-1500.0,0.00014795,2]
[400130789,1767142244161,-1500.0,0.00014795,2]
[400130790,1767142244172,-501.01146008,0.00014795,2]
[400130791,1767142244182,-1500.0,0.00014795,2]
[400130792,1767142244191,-1500.0,0.00014795,2]
[400130793,1767142244202,-1500.0,0.00014795,2]
[400130794,1767142244211,-1000.0,0.00014795,2]
[400130795,1767142244220,-614.47125074,0.00014795,2]
[400130796,1767142244230,-1502.56460974,0.00014795,2]
[400130797,1767142244241,-463.12350294,0.00014795,2]
[400130798,1767142244250,-1500.0,0.00014795,2]
[400130799,1767142244260,-1500.67462727,0.00014795,2]
[400130800,1767142244269,-1500.0,0.00014795,2]
[400130801,1767142244279,-1500.0,0.00014795,2]
[400130802,1767142244288,-1500.0,0.00014795,2]
[400130803,1767142244298,-1500.0,0.00014795,2]
[400130804,1767142244307,-1500.0,0.00014795,2]
[400130805,1767142244317,-1135.30832269,0.00014795,2]
[400130806,1767142244327,-1500.0,0.00014795,2]
[400130807,1767142244336,-1500.0,0.00014795,2]
[400130808,1767142244346,-1500.0,0.00014795,2]
[400130809,1767142244355,-1500.0,0.00014795,2]
[400130810,1767142244365,-1500.0,0.00014795,2]
[400130811,1767142244375,-1500.0,0.00014795,2]
[400130812,1767142244385,-1500.0,0.00014795,2]
[400130813,1767142244395,-1500.0,0.00014795,2]
[400130814,1767142244404,-1500.0,0.00014795,2]
[400130815,1767142244413,-1500.0,0.00014795,2]
[400130816,1767142244424,-1500.0,0.00014795,2]
[400130817,1767142244434,-1500.0,0.00014795,2]
[400130818,1767142244443,-1633.14052815,0.00014795,2]
[400130819,1767142244453,-1516.26229234,0.00014795,2]
[400130820,1767142244462,-1500.0,0.00014795,2]
[400130821,1767142244471,-1103.59591982,0.00014795,2]
[400130822,1767142244481,-1500.0,0.00014795,2]
[400130823,1767142244490,-1500.0,0.00014795,2]
[400130824,1767142244499,-1500.0,0.00014795,2]
[400130825,1767142244509,-1111.89,0.00014805,2]
[400130826,1767142244518,-285.44486869,0.00014834,2]
[400130827,1767142244527,-720.0,0.00014891,2]
[400130828,1767142244537,-204.23238205,0.00014908,2]
[400130829,1767142244547,-2000.0,0.00014916,2]
[400130830,1767142244556,-1306.02349709,0.00014916,2]
[400130831,1767142244565,-2000.0,0.00014916,2]
[400130832,1767142244574,-345.67383006,0.00014916,2]
[400130833,1767142244583,-2000.0,0.00014916,2]
[400130834,1767142244594,-530.60034306,0.00014916,2]
[400130835,1767142244603,-153.38490748,0.00014916,2]
[400130836,1767142244614,-2000.0,0.00014916,2]
[400130837,1767142244623,-2000.0,0.00014916,2]
[400130838,1767142244632,-2000.0,0.00014916,2]
[400130839,1767142244642,-159.38531226,0.00014916,2]
[400130840,1767142244653,-2000.0,0.00014916,2]
[400130841,1767142244662,-1818.87701711,0.00014916,2]
[400130842,1767142244671,-2000.0,0.00014916,2]
[400130843,1767142244681,-2000.0,0.00014916,2]
[400130844,1767142244691,-1078.34432056,0.00014916,2]
[400130845,1767142244700,-2000.0,0.00014916,2]
[400130846,1767142244709,-153.33728789,0.00014916,2]
[400130847,1767142244719,-2000.0,0.00014916,2]
[400130848,1767142244729,-1705.87434732,0.00014916,2]
[400130849,1767142244739,-2000.0,0.00014916,2]
[400130850,1767142244748,-2000.0,0.00014916,2]
[400130851,1767142244757,-2000.0,0.00014916,2]
[400130852,1767142244767,-2000.0,0.00014916,2]
[400130853,1767142244776,-923.25808836,0.00014916,2]
[400130854,1767142244786,-2000.0,0.00014916,2]
[400130855,1767142244796,-2000.0,0.00014916,2]
[400130856,1767142244805,-500.0,0.00014918,2]
[400130857,1767142244815,-8791.87590737,0.00014968,2]
[400130858,1767142244824,-1215.77220077,0.00014968,2]
[400130859,1767142244833,-100000.0,0.00015028,2]
[400130860,1767142244843,-802.4075812,0.00015068,2]
[400130861,1767142244853,-500.0,0.00015192,2]
[400130862,1767142244863,-204.03039397,0.00015263,2]
[400130863,1767142244872,-407.8530883,0.00015263,2]
[400130864,1767142244882,-1200.0,0.00015316,2]
[400130865,1767142244891,-1530.49483625,0.00015342,2]
[400130866,1767142244900,-1002.96369924,0.00015342,2]
[400130867,1767142244910,-652.56560991,0.00015342,2]
[400130868,1767142244920,-1647.98630297,0.00015342,2]
[400130869,1767142244930,-1165.08832195,0.00015342,2]
[400130870,1767142244940,-1998.58986785,0.00015342,2]
[400130871,1767142244950,-287.73937982,0.00015342,2]
[400130872,1767142244960,-402.01463508,0.00015342,2]
[400130873,1767142244971,-501.93029299,0.00015342,2]
[400130874,1767142244981,-2000.0,0.00015342,2]
[400130875,1767142244991,-915.38718416,0.00015342,2]
[400130876,1767142245001,-1965.59328005,0.00015342,2]
[400130877,1767142245011,-1383.55924972,0.00015342,2]
[400130878,1767142245021,-1002.36383556,0.00015342,2]
[400130879,1767142245031,-1071.88192211,0.00015342,2]
[400130880,1767142245040,-516.19204284,0.00015342,2]
[400130881,1767142245049,-705.08957727,0.00015342,2]
[400130882,1767142245059,-2000.0,0.00015342,2]
[400130883,1767142245068,-790.36524538,0.00015342,2]
[400130884,1767142245078,-1692.72226134,0.00015342,2]
[400130885,1767142245087,-2000.0,0.00015342,2]
[400130886,1767142245096,-506.96411666,0.00015342,2]
[400130887,1767142245106,-601.9114542,0.00015342,2]
[400130888,1767142245115,-501.02108075,0.00015342,2]
[400130889,1767142245124,-1296.56856635,0.00015342,2]
[400130890,1767142245134,-500.93999528,0.00015342,2]
[400130891,1767142245144,-1502.03362733,0.00015342,2]
[400130892,1767142245153,-2000.0,0.00015342,2]
[400130893,1767142245165,-501.17963046,0.00015342,2]
[400130894,1767142245174,-2000.76422099,0.00015342,2]
[400130895,1767142245184,-500.74703084,0.00015342,2]
[400130896,1767142245193,-2128.34758048,0.00015342,2]
[400130897,1767142245203,-2000.0,0.00015342,2]
[400130898,1767142245212,-2000.79867344,0.00015342,2]
[400130899,1767142245222,-2000.0,0.00015342,2]
[400130900,1767142245231,-1501.43570007,0.00015342,2]
[400130901,1767142245243,-1334.27,0.00015397,2]
[400130902,1767142245252,-151.0,0.00015464,2]
[400130903,1767142245262,-151.0,0.00015464,2]
[400130904,1767142245272,-451.0928214,0.00015464,2]
[400130905,1767142245281,-766.73162538,0.00015464,2]
[400130906,1767142245291,-2500.0,0.00015464,2]
[400130907,1767142245300,-2500.0,0.00015464,2]
[400130908,1767142245309,-2500.0,0.00015464,2]
[400130909,1767142245319,-2500.0,0.00015464,2]
[400130910,1767142245328,-2500.0,0.00015464,2]
[400130911,1767142245337,-2500.0,0.00015464,2]
[400130912,1767142245347,-2500.0,0.00015464,2]
[400130913,1767142245356,-500.81406623,0.00015464,2]
[400130914,1767142245366,-2500.0,0.00015464,2]
[400130915,1767142245375,-2500.0,0.00015464,2]
[400130916,1767142245385,-2500.0,0.00015464,2]
[400130917,1767142245394,-2500.0,0.00015464,2]
[400130918,1767142245404,-268.17522063,0.00015464,2]
[400130919,1767142245413,-692.65496128,0.00015464,2]
[400130920,1767142245425,-2500.0,0.00015464,2]
[400130921,1767142245436,-286.46296749,0.00015466,2]
[400130922,1767142245445,-587.0,0.00015471,2]
[400130923,1767142245455,-2351.0,0.0001556,2]
[400130924,1767142245465,-205.86501856,0.00015753,2]
[400130925,1767142245478,-1198.4228942,0.00015864,2]
[400130926,1767142245497,-2102.33772448,0.0001589,2]
[400130927,1767142245509,-2500.0,0.0001589,2]
[400130928,1767142245519,-903.04207638,0.0001589,2]
[400130929,1767142245528,-1511.97065526,0.0001589,2]
[400130930,1767142245538,-501.28240001,0.0001589,2]
[400130931,1767142245548,-2500.0,0.0001589,2]
[400130932,1767142245557,-1556.64,0.00015989,2]
[400130933,1767142245567,-3000.0,0.00016012,2]
[400130934,1767142245576,-3000.0,0.00016012,2]
[400130935,1767142245586,-3000.0,0.00016012,2]
[400130936,1767142245595,-354.66599035,0.00016012,2]
[400130937,1767142245606,-3000.0,0.00016012,2]
[400130938,1767142245615,-2505.03427004,0.00016012,2]
[400130939,1767142245626,-3000.0,0.00016012,2]
[400130940,1767142245635,-3000.0,0.00016012,2]
[400130941,1767142245644,-3000.0,0.00016012,2]
[400130942,1767142245654,-3000.0,0.00016012,2]
[400130943,1767142245663,-3000.0,0.00016012,2]
[400130944,1767142245672,-3000.0,0.00016012,2]
[400130945,1767142245681,-864.0,0.0001638,2]
[400130946,1767142245690,-500.0,0.00016438,2]
[400130947,1767142245699,-237.2637316,0.00016438,2]
[400130948,1767142245708,-3000.0,0.00016438,2]
[400130949,1767142245718,-3000.0,0.00016438,2]
[400130950,1767142245727,-200.0,0.00016473,2]
[400130951,1767142245737,-3075.53869932,0.0001656,2]
[400130952,1767142245746,-338.65201998,0.0001656,2]
[400130953,1767142245755,-3500.0,0.0001656,2]
[400130954,1767142245765,-3518.30844147,0.0001656,2]
[400130955,1767142245774,-572.1911069,0.0001656,2]
[400130956,1767142245784,-949.77336015,0.0001656,2]
[400130957,1767142245793,-3500.0,0.0001656,2]
[400130958,1767142245802,-3500.0,0.0001656,2]
[400130959,1767142245812,-3500.0,0.0001656,2]
[400130960,1767142245821,-2797.42464436,0.0001656,2]
[400130961,1767142245831,-1779.02,0.00016582,2]
[400130962,1767142245841,-328.98730629,0.00016834,2]
[400130963,1767142245850,-823.0,0.00016969,2]
[400130964,1767142245859,-217.220488,0.00016986,2]
[400130965,1767142245870,-217.220488,0.00016986,2]
[400130966,1767142245879,-217.220488,0.00016986,2]
[400130967,1767142245889,-217.220488,0.00016986,2]
[400130968,1767142245898,-3500.0,0.00016986,2]
[400130969,1767142245908,-3500.0,0.00016986,2]
[400130970,1767142245918,-250.0,0.00016993,2]
[400130971,1767142245927,-711.20382489,0.00017108,2]
[400130972,1767142245938,-4000.0,0.00017108,2]
[400130973,1767142245947,-4000.0,0.00017108,2]
[400130974,1767142245956,-1507.11670617,0.00017108,2]
[400130975,1767142245965,-3292.0,0.00017116,2]
[400130977,1767142245975,-2001.4,0.00017174,2]
[400130978,1767142245984,-8791.8759073,0.00017476,2]
[400130979,1767142245993,-4000.0,0.00017534,2]
[400130980,1767142246003,-4000.0,0.00017534,2]
[400130981,1767142246012,-1501.83600632,0.00017656,2]
[400130982,1767142246022,-3020.819804,0.00017656,2]
[400130983,1767142246031,-2223.78,0.00017766,2]
[400130984,1767142246041,-47234.64240088,0.000178,3]
[400130985,1767142246051,-498.95073,0.000178,2]
[400130986,1767142246060,-498.95073,0.000178,2]
[400130988,1767142246069,-498.95073,0.000178,2]
[400130989,1767142246078,-498.95073,0.000178,2]
[400130991,1767142246087,-278.55403227,0.00017842,2]
[400130993,1767142246096,-1000.0,0.00018018,2]
[400130995,1767142246105,-4500.0,0.00018082,2]
[400130997,1767142246115,-2701.00680866,0.00018082,2]
[400130998,1767142246124,-1836.174,0.00018247,2]
[400130999,1767142246133,-1152.0,0.00018611,2]
[400131000,1767142246143,-5000.0,0.0001863,2]
[400131001,1767142246152,-563.61456346,0.000187,2]
[400131002,1767142246165,-1001.98144615,0.000187,2]
[400131003,1767142246175,-2254.45825383,0.000187,2]
[400131004,1767142246184,-4609.0,0.00018828,2]
[400131005,1767142246194,-372.52974389,0.00018834,2]
[400131006,1767142246203,-302.90913937,0.000189,2]
[400131007,1767142246214,-302.90913937,0.000189,2]
[400131008,1767142246223,-302.90913937,0.00019089,2]
[400131009,1767142246232,-302.90913937,0.00019089,2]
[400131010,1767142246242,-532.12,0.00019178,2]
[400131011,1767142246251,-532.12,0.00019178,2]
[400131012,1767142246260,-532.12,0.00019178,2]
[400131013,1767142246269,-532.12,0.00019178,2]
[400131014,1767142246278,-532.12,0.00019178,2]
[400131015,1767142246288,-532.12,0.00019178,2]
[400131016,1767142246297,-532.12,0.00019178,2]
[400131017,1767142246306,-532.12,0.00019178,2]
[400131018,1767142246316,-532.12,0.00019178,2]
[400131019,1767142246325,-532.12,0.00019178,2]
[400131020,1767142246339,-532.12,0.00019178,2]
[400131021,1767142246348,-532.12,0.00019178,2]
[400131022,1767142246357,-532.12,0.00019178,2]
[400131023,1767142246367,-532.12,0.00019178,2]
[400131024,1767142246377,-532.12,0.00019178,2]
[400131025,1767142246386,-532.12,0.00019178,2]
[400131026,1767142246395,-532.12,0.00019178,2]
[400131027,1767142246404,-532.12,0.00019178,2]
[400131028,1767142246414,-532.12,0.00019178,2]
[400131029,1767142246423,-532.12,0.00019178,2]
[400131030,1767142246433,-532.12,0.00019178,2]
[400131031,1767142246442,-532.12,0.00019178,2]
[400131032,1767142246455,-532.12,0.00019178,2]
[400131033,1767142246465,-532.23825721,0.00019178,2]
[400131034,1767142246474,-500.0,0.00019178,2]
[400131035,1767142246483,-500.0,0.00019178,2]
[400131036,1767142246493,-500.0,0.00019178,2]
[400131037,1767142246502,-500.0,0.00019178,2]
[400131038,1767142246512,-500.0,0.00019178,2]
[400131039,1767142246521,-500.0,0.00019178,2]
[400131040,1767142246530,-500.0,0.00019178,2]
[400131041,1767142246539,-500.0,0.00019178,2]
[400131042,1767142246548,-500.0,0.00019178,2]
[400131043,1767142246558,-500.0,0.00019178,2]
[400131044,1767142246567,-500.0,0.00019178,2]
[400131045,1767142246576,-500.0,0.00019178,2]
[400131046,1767142246585,-500.0,0.00019178,2]
[400131047,1767142246595,-500.0,0.00019178,2]
[400131048,1767142246603,-500.0,0.00019178,2]
[400131049,1767142246612,-500.0,0.00019178,2]
[400131050,1767142246622,-500.0,0.00019178,2]
[400131051,1767142246631,-500.0,0.00019178,2]
[400131052,1767142246640,-500.0,0.00019178,2]
[400131053,1767142246650,-500.0,0.00019178,2]
[400131054,1767142246659,-500.0,0.00019178,2]
[400131055,1767142246668,-500.0,0.00019178,2]
[400131056,1767142246677,-500.0,0.00019178,2]
[400131057,1767142246686,-500.0,0.00019178,2]
[400131058,1767142246695,-500.0,0.00019178,2]
[400131059,1767142246704,-500.0,0.00019178,2]
[400131060,1767142246713,-500.0,0.00019178,2]
[400131061,1767142246723,-500.0,0.00019178,2]
[400131062,1767142246732,-500.0,0.00019178,2]
[400131063,1767142246741,-500.0,0.00019178,2]
[400131064,1767142246750,-500.0,0.00019178,2]
[400131065,1767142246760,-500.0,0.00019178,2]
[400131066,1767142246769,-500.0,0.00019178,2]
[400131067,1767142246779,-500.0,0.00019178,2]
[400131068,1767142246789,-500.0,0.00019178,2]
[400131069,1767142246799,-500.0,0.00019178,2]
[400131070,1767142246808,-500.0,0.00019178,2]
[400131071,1767142246818,-500.0,0.00019178,2]
[400131072,1767142246931,-500.0,0.00019178,2]
[400131073,1767142246954,-500.0,0.00019178,2]
[400131074,1767142246964,-500.0,0.00019178,2]
[400131075,1767142246974,-500.0,0.00019178,2]
[400131076,1767142246983,-500.0,0.00019178,2]
[400131077,1767142246993,-500.0,0.00019178,2]
[400131078,1767142247002,-500.0,0.00019178,2]
[400131079,1767142247011,-500.0,0.00019178,2]
[400131080,1767142247021,-500.0,0.00019178,2]
[400131081,1767142247031,-500.0,0.00019178,2]
[400131082,1767142247040,-151.0,0.00019178,2]
[400131083,1767142247049,-151.0,0.00019178,2]
[400131084,1767142247058,-485.490684,0.00019178,2]
[400131085,1767142247068,-485.490684,0.00019178,2]
[400131086,1767142247077,-485.490684,0.00019178,2]
[400131087,1767142247086,-485.490684,0.00019178,2]
[400131088,1767142247096,-5500.0,0.00019178,2]
[400131089,1767142247106,-150.0,0.00019178,2]
[400131090,1767142247115,-164.88,0.000192,2]
[400131091,1767142247124,-166.34,0.000192,2]
[400131092,1767142247133,-302.90913937,0.00019278,2]
[400131093,1767142247143,-302.90913937,0.00019278,2]
[400131094,1767142247152,-300.0,0.00019315,2]
[400131095,1767142247166,-450.0,0.00019452,2]
[400131096,1767142247175,-302.90913937,0.00019467,2]
[400131097,1767142247185,-302.90913937,0.00019467,2]
[400131098,1767142247194,-204.23238205,0.00019536,2]
[400131099,1767142247203,-600.0,0.00019589,2]
[400131100,1767142247212,-302.90913937,0.00019656,2]
[400131101,1767142247221,-302.90913937,0.00019656,2]
[400131102,1767142247233,-6000.0,0.00019726,2]
[400131103,1767142247242,-556.1484877,0.00019726,2]
[400131104,1767142247252,-204.03039397,0.00019803,2]
[400131105,1767142247262,-407.8530883,0.00019803,2]
[400131106,1767142247271,-1000.0,0.0001982,2]
[400131107,1767142247280,-244.0,0.0001982,2]
[400131108,1767142247290,-454.36370906,0.00019845,4]
[400131109,1767142247299,-454.36370906,0.00019845,4]
[400131110,1767142247308,-1053.31,0.000199,2]
[400131111,1767142247317,-11608.45,0.000199,2]
[400131112,1767142247327,-160.46,0.000199,2]
[400131113,1767142247336,-1236.84952003,0.00019946,2]
[400131114,1767142247345,-8791.8759073,0.00019984,2]
[400131115,1767142247356,-179.30196423,0.0002,2]
[400131116,1767142247366,-210.00651371,0.0002,2]
[400131117,1767142247375,-2000.0,0.0002,7]
[400131118,1767142247384,-454.36370906,0.00020034,4]
[400131119,1767142247394,-454.36370906,0.00020034,4]
[400131120,1767142247403,-205.86501856,0.0002017,2]
[400131121,1767142247413,-454.36370906,0.00020223,4]
[400131122,1767142247421,-454.36370906,0.00020223,4]
[400131123,1767142247431,-6500.0,0.00020274,2]
[400131124,1767142247440,-454.36370906,0.00020412,4]
[400131125,1767142247450,-454.36370906,0.00020412,4]
[400131126,1767142247459,-1613.0,0.00020413,2]
[400131127,1767142247468,-150.0,0.00020497,30]
[400131128,1767142247478,-317.13148106,0.00020601,4]
[400131129,1767142247487,-454.36370906,0.00020601,4]
[400131130,1767142247497,-6453.0,0.00020711,2]
[400131131,1767142247507,-789.47,0.00020722,2]
[400131132,1767142247516,-204.33745853,0.00020822,2]
[400131133,1767142247525,-416.07218149,0.00020834,2]
[400131134,1767142247535,-164.88,0.000209,2]
[400131135,1767142247544,-206.15825334,0.00021149,10]
[400131136,1767142247554,-190.61,0.00021473,30]
[400131137,1767142247564,-160.0,0.00021571,3]
[400131138,1767142247573,-222.9,0.00021584,2]
[400131139,1767142247582,-1000.0,0.00021802,10]
[400131140,1767142247592,-492.0,0.00021802,10]
[400131141,1767142247601,-211.6742,0.0002181,2]
[400131142,1767142247610,-160.0,0.00021869,4]
[400131143,1767142247619,-1000.0,0.000219,2]
[400131144,1767142247629,-515.71378408,0.00021917,2]
[400131145,1767142247638,-500.08133129,0.00021917,2]
[400131146,1767142247647,-500.79380713,0.00021917,2]
[400131147,1767142247656,-257.247478,0.00021917,2]
[400131148,1767142247666,-3824.025904,0.00021917,2]
[400131149,1767142247675,-242.92590961,0.00021917,2]
[400131150,1767142247685,-495.99265184,0.00021917,2]
[400131151,1767142247694,-500.0,0.00021917,2]
[400131152,1767142247703,-362.03368786,0.00021917,2]
[400131153,1767142247713,-179.66551101,0.00021917,2]
[400131154,1767142247723,-501.68456333,0.00021917,2]
[400131155,1767142247732,-244.84208293,0.00021917,2]
[400131156,1767142247742,-234.10449026,0.00021917,2]
[400131157,1767142247751,-616.6582842,0.00021917,2]
[400131158,1767142247760,-500.0,0.00021917,2]
[400131159,1767142247769,-395.08803825,0.00021917,2]
[400131160,1767142247779,-416.42753173,0.00021917,2]
[400131161,1767142247788,-198.05075534,0.00021917,2]
[400131162,1767142247797,-246.39472202,0.00021917,2]